[Event "Titled Tuesday Blitz August 15 Late 2023"]
[White "Tsotsonava, Elene"]
[Black "Sreyas Payyappat"]
[WhiteFideId "13615939"]
[BlackFideId "46674969"]
[WhiteElo "2399"]
[BlackElo "2559"]
[Result "0-1"]
[Round "3"]
[TimeControl "180+1"]
[Date "2023.08.15"]
[WhiteClock "0:00:00"]
[BlackClock "0:01:39"]
[Board "99"]

1. e4 {[%clk 0:02:58]}  c6 {[%clk 0:02:59]} 2. d4 {[%clk 0:02:58]}  d5 {[%clk 0:03:00]} 3. exd5 {[%clk 0:02:57]}  cxd5 {[%clk 0:03:01]} 4. c4 {[%clk 0:02:56]}  Nf6 {[%clk 0:03:00]} 5. Nc3 {[%clk 0:02:56]}  Nc6 {[%clk 0:02:59]} 6. Bg5 {[%clk 0:02:57]}  Be6 {[%clk 0:02:57]} 7. a3 {[%clk 0:02:50]}  h6 {[%clk 0:02:35]} 8. Bxf6 {[%clk 0:02:40]}  exf6 {[%clk 0:02:36]} 9. Nf3 {[%clk 0:02:35]}  Be7 {[%clk 0:02:33]} 10. c5 {[%clk 0:02:27]}  O-O {[%clk 0:02:28]} 11. Bb5 {[%clk 0:02:25]}  a6 {[%clk 0:02:15]} 12. Bd3 {[%clk 0:02:21]}  b6 {[%clk 0:02:11]} 13. b4 {[%clk 0:02:20]}  bxc5 {[%clk 0:02:07]} 14. bxc5 {[%clk 0:02:20]}  Qa5 {[%clk 0:02:04]} 15. Qd2 {[%clk 0:02:20]}  Rab8 {[%clk 0:02:04]} 16. O-O {[%clk 0:02:20]}  Rb3 {[%clk 0:02:03]} 17. Rfc1 {[%clk 0:02:13]}  Bg4 {[%clk 0:02:02]} 18. Nxd5 {[%clk 0:02:12]}  Qxd2 {[%clk 0:02:02]} 19. Nxd2 {[%clk 0:02:11]}  Rxd3 {[%clk 0:02:02]} 20. Ne4 {[%clk 0:02:04]}  Rxd4 {[%clk 0:02:00]} 21. Nxe7+ {[%clk 0:02:01]}  Nxe7 {[%clk 0:02:01]} 22. f3 {[%clk 0:02:01]}  Bf5 {[%clk 0:01:59]} 23. Nd6 {[%clk 0:02:00]}  Be6 {[%clk 0:01:57]} 24. Rab1 {[%clk 0:01:58]}  Rd8 {[%clk 0:01:54]} 25. Rb7 {[%clk 0:01:57]}  Nf5 {[%clk 0:01:53]} 26. Nxf5 {[%clk 0:01:51]}  Bxf5 {[%clk 0:01:54]} 27. c6 {[%clk 0:01:51]}  Rd1+ {[%clk 0:01:54]} 28. Rxd1 {[%clk 0:01:51]}  Rxd1+ {[%clk 0:01:54]} 29. Kf2 {[%clk 0:01:52]}  Rc1 {[%clk 0:01:54]} 30. c7 {[%clk 0:01:52]}  Be6 {[%clk 0:01:53]} 31. Ra7 {[%clk 0:01:51]}  Rc6 {[%clk 0:01:49]} 32. a4 {[%clk 0:01:48]}  Kf8 {[%clk 0:01:43]} 33. a5 {[%clk 0:01:46]}  Ke8 {[%clk 0:01:43]} 34. Ra8+ {[%clk 0:01:43]}  Kd7 {[%clk 0:01:41]} 35. Rg8 {[%clk 0:01:44]}  g6 {[%clk 0:01:40]} 36. Rh8 {[%clk 0:00:00]}  h5 {[%clk 0:01:39]} 0-1


[Site "https://www.chess.com"]

[Event "Titled Tuesday Blitz August 15 Late 2023"]
[White "Keleberda, Tymur"]
[Black "dodoucb"]
[WhiteFideId "14174294"]
[WhiteElo "2556"]
[BlackElo "2395"]
[Result "0-1"]
[Round "3"]
[TimeControl "180+1"]
[Date "2023.08.15"]
[WhiteClock "0:00:03"]
[BlackClock "0:00:26"]
[Board "100"]

1. e4 {[%clk 0:02:45]}  c6 {[%clk 0:02:59]} 2. d4 {[%clk 0:02:44]}  d5 {[%clk 0:03:00]} 3. f3 {[%clk 0:02:45]}  dxe4 {[%clk 0:03:00]} 4. fxe4 {[%clk 0:02:45]}  e5 {[%clk 0:03:01]} 5. Nf3 {[%clk 0:02:40]}  Bg4 {[%clk 0:03:01]} 6. Bc4 {[%clk 0:02:40]}  Nd7 {[%clk 0:03:00]} 7. O-O {[%clk 0:02:39]}  Ngf6 {[%clk 0:03:00]} 8. c3 {[%clk 0:02:36]}  Bd6 {[%clk 0:02:57]} 9. dxe5 {[%clk 0:02:24]}  Nxe5 {[%clk 0:02:54]} 10. Be2 {[%clk 0:02:10]}  Nxf3+ {[%clk 0:02:43]} 11. Bxf3 {[%clk 0:02:07]}  Bc5+ {[%clk 0:02:42]} 12. Kh1 {[%clk 0:02:06]}  Qxd1 {[%clk 0:02:41]} 13. Rxd1 {[%clk 0:02:06]}  O-O {[%clk 0:02:34]} 14. Bg5 {[%clk 0:02:05]}  Nxe4 {[%clk 0:02:33]} 15. Bxe4 {[%clk 0:01:21]}  Bxd1 {[%clk 0:02:31]} 16. Nd2 {[%clk 0:01:20]}  Bh5 {[%clk 0:02:28]} 17. h3 {[%clk 0:01:17]}  Rfe8 {[%clk 0:02:25]} 18. g4 {[%clk 0:01:12]}  Bg6 {[%clk 0:02:23]} 19. Bf3 {[%clk 0:01:12]}  Be3 {[%clk 0:02:22]} 20. Bxe3 {[%clk 0:01:12]}  Rxe3 {[%clk 0:02:23]} 21. Kg2 {[%clk 0:01:08]}  Rd8 {[%clk 0:02:18]} 22. Nc4 {[%clk 0:01:08]}  Re7 {[%clk 0:02:17]} 23. Kf2 {[%clk 0:01:02]}  Be4 {[%clk 0:02:08]} 24. Re1 {[%clk 0:01:02]}  Rde8 {[%clk 0:02:00]} 25. Nd6 {[%clk 0:01:01]}  Bxf3 {[%clk 0:02:00]} 26. Nxe8 {[%clk 0:00:57]}  Rxe1 {[%clk 0:01:59]} 27. Kxe1 {[%clk 0:00:57]}  Kf8 {[%clk 0:01:53]} 28. Nd6 {[%clk 0:00:57]}  c5 {[%clk 0:01:49]} 29. Kf2 {[%clk 0:00:57]}  Bd5 {[%clk 0:01:48]} 30. a4 {[%clk 0:00:56]}  Bc6 {[%clk 0:01:19]} 31. a5 {[%clk 0:00:56]}  b6 {[%clk 0:01:19]} 32. a6 {[%clk 0:00:51]}  Bd7 {[%clk 0:00:49]} 33. Ke3 {[%clk 0:00:24]}  Ke7 {[%clk 0:00:48]} 34. Nc4 {[%clk 0:00:24]}  Bb5 {[%clk 0:00:45]} 35. Ne5 {[%clk 0:00:25]}  f6 {[%clk 0:00:43]} 36. Nf3 {[%clk 0:00:20]}  Bxa6 {[%clk 0:00:42]} 37. Nh4 {[%clk 0:00:19]}  g6 {[%clk 0:00:42]} 38. Ng2 {[%clk 0:00:20]}  Bb7 {[%clk 0:00:42]} 39. Nf4 {[%clk 0:00:20]}  Kd6 {[%clk 0:00:38]} 40. Nd3 {[%clk 0:00:20]}  Ba6 {[%clk 0:00:37]} 41. Nf4 {[%clk 0:00:20]}  Ke5 {[%clk 0:00:36]} 42. h4 {[%clk 0:00:20]}  Bc8 {[%clk 0:00:33]} 43. g5 {[%clk 0:00:17]}  fxg5 {[%clk 0:00:33]} 44. hxg5 {[%clk 0:00:18]}  Kf5 {[%clk 0:00:33]} 45. Nd5 {[%clk 0:00:19]}  Kxg5 {[%clk 0:00:32]} 46. Nc7 {[%clk 0:00:13]}  Bb7 {[%clk 0:00:32]} 47. Kf2 {[%clk 0:00:11]}  h5 {[%clk 0:00:32]} 48. Kg3 {[%clk 0:00:11]}  h4+ {[%clk 0:00:32]} 49. Kh2 {[%clk 0:00:11]}  Kg4 {[%clk 0:00:31]} 50. Nb5 {[%clk 0:00:10]}  g5 {[%clk 0:00:31]} 51. Nxa7 {[%clk 0:00:10]}  Kf3 {[%clk 0:00:32]} 52. Nb5 {[%clk 0:00:10]}  g4 {[%clk 0:00:32]} 53. Nd6 {[%clk 0:00:10]}  g3+ {[%clk 0:00:32]} 54. Kg1 {[%clk 0:00:10]}  Bd5 {[%clk 0:00:32]} 55. c4 {[%clk 0:00:09]}  Bc6 {[%clk 0:00:33]} 56. Nf7 {[%clk 0:00:08]}  Ke4 {[%clk 0:00:27]} 57. Kg2 {[%clk 0:00:07]}  Kd4+ {[%clk 0:00:26]} 58. Kg1 {[%clk 0:00:03]}  h3 {[%clk 0:00:26]} 0-1


[Site "https://www.chess.com"]

[Event "Titled Tuesday Blitz August 15 Late 2023"]
[White "Tarasova, Viktoriya"]
[Black "Paszewski, Mateusz"]
[WhiteFideId "4175840"]
[BlackFideId "1141058"]
[WhiteElo "2392"]
[BlackElo "2556"]
[Result "0-1"]
[Round "3"]
[TimeControl "180+1"]
[Date "2023.08.15"]
[WhiteClock "0:00:01"]
[BlackClock "0:00:23"]
[Board "101"]

1. d4 {[%clk 0:02:55]}  d5 {[%clk 0:02:59]} 2. c4 {[%clk 0:02:54]}  c6 {[%clk 0:03:00]} 3. Nf3 {[%clk 0:02:54]}  Nf6 {[%clk 0:03:00]} 4. Nc3 {[%clk 0:02:53]}  e6 {[%clk 0:03:00]} 5. Bg5 {[%clk 0:02:52]}  dxc4 {[%clk 0:03:00]} 6. e4 {[%clk 0:02:51]}  b5 {[%clk 0:02:59]} 7. e5 {[%clk 0:02:51]}  h6 {[%clk 0:02:59]} 8. Bh4 {[%clk 0:02:52]}  g5 {[%clk 0:02:59]} 9. Nxg5 {[%clk 0:02:52]}  hxg5 {[%clk 0:03:00]} 10. Bxg5 {[%clk 0:02:53]}  Nbd7 {[%clk 0:03:01]} 11. g3 {[%clk 0:02:52]}  Bb7 {[%clk 0:03:01]} 12. exf6 {[%clk 0:02:51]}  c5 {[%clk 0:02:59]} 13. d5 {[%clk 0:02:51]}  Qb6 {[%clk 0:02:59]} 14. Bg2 {[%clk 0:02:51]}  O-O-O {[%clk 0:02:59]} 15. O-O {[%clk 0:02:50]}  b4 {[%clk 0:02:58]} 16. Na4 {[%clk 0:02:50]}  Qb5 {[%clk 0:02:58]} 17. a3 {[%clk 0:02:49]}  Nb8 {[%clk 0:02:57]} 18. axb4 {[%clk 0:02:10]}  cxb4 {[%clk 0:02:58]} 19. Qg4 {[%clk 0:01:48]}  Bxd5 {[%clk 0:02:57]} 20. Bxd5 {[%clk 0:01:32]}  Rxd5 {[%clk 0:02:57]} 21. Be3 {[%clk 0:01:32]}  Nc6 {[%clk 0:02:55]} 22. Rfc1 {[%clk 0:01:22]}  Ne5 {[%clk 0:02:55]} 23. Qe4 {[%clk 0:01:22]}  Qc6 {[%clk 0:02:26]} 24. Kg2 {[%clk 0:00:57]}  Kb7 {[%clk 0:02:24]} 25. Bf4 {[%clk 0:00:37]}  Nd3 {[%clk 0:00:52]} 26. Rxc4 {[%clk 0:00:29]}  Nxf4+ {[%clk 0:00:52]} 27. gxf4 {[%clk 0:00:28]}  Qb5 {[%clk 0:00:45]} 28. b3 {[%clk 0:00:14]}  Bd6 {[%clk 0:00:45]} 29. Rac1 {[%clk 0:00:13]}  Kb8 {[%clk 0:00:44]} 30. Qc2 {[%clk 0:00:11]}  Qb7 {[%clk 0:00:40]} 31. f3 {[%clk 0:00:07]}  Rdh5 {[%clk 0:00:34]} 32. h3 {[%clk 0:00:04]}  Rg8+ {[%clk 0:00:29]} 33. Kh2 {[%clk 0:00:01]}  Rxh3+ {[%clk 0:00:24]} 34. Kxh3 {[%clk 0:00:01]}  Qxf3+ {[%clk 0:00:24]} 35. Kh2 {[%clk 0:00:01]}  Rh8+ {[%clk 0:00:23]} 36. Kg1 {[%clk 0:00:01]}  Rh1# {[%clk 0:00:23]} 0-1


[Site "https://www.chess.com"]

[Event "Titled Tuesday Blitz August 15 Late 2023"]
[White "Shapiro, Viktor"]
[Black "petr577"]
[WhiteFideId "4175700"]
[WhiteElo "2555"]
[BlackElo "2374"]
[Result "0-1"]
[Round "3"]
[TimeControl "180+1"]
[Date "2023.08.15"]
[WhiteClock "0:00:00"]
[BlackClock "0:00:10"]
[Board "102"]

1. c4 {[%clk 0:03:00]}  c5 {[%clk 0:02:59]} 2. Nc3 {[%clk 0:03:00]}  Nc6 {[%clk 0:03:00]} 3. g3 {[%clk 0:03:01]}  e5 {[%clk 0:03:00]} 4. Bg2 {[%clk 0:03:01]}  d6 {[%clk 0:03:01]} 5. d3 {[%clk 0:03:02]}  Be6 {[%clk 0:03:01]} 6. Nf3 {[%clk 0:03:01]}  Be7 {[%clk 0:03:01]} 7. a3 {[%clk 0:03:00]}  Qd7 {[%clk 0:03:01]} 8. h3 {[%clk 0:03:00]}  h6 {[%clk 0:02:59]} 9. Rb1 {[%clk 0:03:00]}  a5 {[%clk 0:02:58]} 10. Nd5 {[%clk 0:02:55]}  Bd8 {[%clk 0:02:55]} 11. Bd2 {[%clk 0:02:50]}  f5 {[%clk 0:02:54]} 12. O-O {[%clk 0:02:42]}  Nf6 {[%clk 0:02:53]} 13. Nh4 {[%clk 0:02:33]}  Kf7 {[%clk 0:02:47]} 14. f4 {[%clk 0:02:20]}  exf4 {[%clk 0:02:30]} 15. Nxf4 {[%clk 0:02:17]}  Nd4 {[%clk 0:02:17]} 16. e3 {[%clk 0:02:15]}  g5 {[%clk 0:02:14]} 17. Nxe6 {[%clk 0:02:07]}  Qxe6 {[%clk 0:02:07]} 18. Nf3 {[%clk 0:02:00]}  Nc6 {[%clk 0:01:59]} 19. Qb3 {[%clk 0:01:42]}  Rb8 {[%clk 0:01:52]} 20. Rbe1 {[%clk 0:01:42]}  Bc7 {[%clk 0:01:37]} 21. Bc3 {[%clk 0:01:41]}  Rhg8 {[%clk 0:01:36]} 22. e4 {[%clk 0:01:37]}  f4 {[%clk 0:01:35]} 23. d4 {[%clk 0:01:07]}  cxd4 {[%clk 0:01:30]} 24. Bxd4 {[%clk 0:01:01]}  a4 {[%clk 0:00:46]} 25. Qd3 {[%clk 0:00:54]}  Ne5 {[%clk 0:00:38]} 26. Bxe5 {[%clk 0:00:46]}  dxe5 {[%clk 0:00:39]} 27. g4 {[%clk 0:00:46]}  Bb6+ {[%clk 0:00:37]} 28. Kh1 {[%clk 0:00:44]}  h5 {[%clk 0:00:36]} 29. Qc3 {[%clk 0:00:25]}  Rbe8 {[%clk 0:00:28]} 30. c5 {[%clk 0:00:21]}  Bc7 {[%clk 0:00:23]} 31. Nh2 {[%clk 0:00:14]}  hxg4 {[%clk 0:00:18]} 32. hxg4 {[%clk 0:00:14]}  Rh8 {[%clk 0:00:18]} 33. Bf3 {[%clk 0:00:13]}  Rh3 {[%clk 0:00:16]} 34. Re2 {[%clk 0:00:07]}  Reh8 {[%clk 0:00:16]} 35. Rd1 {[%clk 0:00:07]}  Nxg4 {[%clk 0:00:12]} 36. Bxg4 {[%clk 0:00:07]}  Qxg4 {[%clk 0:00:12]} 37. Qc4+ {[%clk 0:00:06]}  Kg7 {[%clk 0:00:12]} 38. Rg1 {[%clk 0:00:00]}  Qf3+ {[%clk 0:00:10]} 0-1


[Site "https://www.chess.com"]

[Event "Titled Tuesday Blitz August 15 Late 2023"]
[White "Deng, Henry"]
[Black "Blackburn, Jonathan L B"]
[WhiteFideId "30965454"]
[BlackFideId "1801090"]
[WhiteElo "2555"]
[BlackElo "2373"]
[Result "0-1"]
[Round "3"]
[TimeControl "180+1"]
[Date "2023.08.15"]
[WhiteClock "0:00:13"]
[BlackClock "0:00:14"]
[Board "103"]

1. b3 {[%clk 0:03:00]}  e5 {[%clk 0:02:58]} 2. Bb2 {[%clk 0:03:01]}  Nc6 {[%clk 0:02:58]} 3. g3 {[%clk 0:03:00]}  d5 {[%clk 0:02:58]} 4. Bg2 {[%clk 0:03:00]}  Be6 {[%clk 0:02:56]} 5. d3 {[%clk 0:03:00]}  f6 {[%clk 0:02:54]} 6. Nd2 {[%clk 0:03:00]}  Nge7 {[%clk 0:02:53]} 7. Ngf3 {[%clk 0:02:58]}  Qd7 {[%clk 0:02:52]} 8. h4 {[%clk 0:02:47]}  h5 {[%clk 0:02:46]} 9. c4 {[%clk 0:02:44]}  O-O-O {[%clk 0:02:43]} 10. a3 {[%clk 0:02:43]}  Nf5 {[%clk 0:02:13]} 11. cxd5 {[%clk 0:02:32]}  Bxd5 {[%clk 0:02:14]} 12. e4 {[%clk 0:02:31]}  Bf7 {[%clk 0:02:01]} 13. exf5 {[%clk 0:02:23]}  Qxd3 {[%clk 0:01:57]} 14. Qe2 {[%clk 0:02:22]}  Qc2 {[%clk 0:01:39]} 15. Rb1 {[%clk 0:01:34]}  e4 {[%clk 0:01:39]} 16. Nd4 {[%clk 0:01:00]}  Nxd4 {[%clk 0:01:32]} 17. Bxd4 {[%clk 0:00:59]}  Rxd4 {[%clk 0:01:30]} 18. Bxe4 {[%clk 0:01:00]}  Qc3 {[%clk 0:00:46]} 19. Qe3 {[%clk 0:00:52]}  Qxe3+ {[%clk 0:00:36]} 20. fxe3 {[%clk 0:00:53]}  Rd8 {[%clk 0:00:32]} 21. b4 {[%clk 0:00:52]}  Bd6 {[%clk 0:00:29]} 22. Rg1 {[%clk 0:00:45]}  Rhe8 {[%clk 0:00:28]} 23. Ke2 {[%clk 0:00:39]}  c6 {[%clk 0:00:20]} 24. Bd3 {[%clk 0:00:32]}  Bc7 {[%clk 0:00:19]} 25. Nf3 {[%clk 0:00:22]}  Bb6 {[%clk 0:00:18]} 26. e4 {[%clk 0:00:21]}  Bxg1 {[%clk 0:00:18]} 27. Rxg1 {[%clk 0:00:21]}  Rd7 {[%clk 0:00:15]} 28. Rd1 {[%clk 0:00:18]}  Red8 {[%clk 0:00:15]} 29. Ke3 {[%clk 0:00:19]}  Bc4 {[%clk 0:00:15]} 30. Ne1 {[%clk 0:00:18]}  Bxd3 {[%clk 0:00:15]} 31. Nxd3 {[%clk 0:00:18]}  b6 {[%clk 0:00:14]} 32. Rd2 {[%clk 0:00:18]}  Kc7 {[%clk 0:00:14]} 33. Rd1 {[%clk 0:00:18]}  c5 {[%clk 0:00:14]} 34. bxc5 {[%clk 0:00:12]}  bxc5 {[%clk 0:00:15]} 35. Ke2 {[%clk 0:00:13]}  c4 {[%clk 0:00:15]} 36. Nf2 {[%clk 0:00:14]}  Rxd1 {[%clk 0:00:15]} 37. Nxd1 {[%clk 0:00:15]}  Kc6 {[%clk 0:00:15]} 38. Nc3 {[%clk 0:00:12]}  Rd3 {[%clk 0:00:13]} 39. Nd5 {[%clk 0:00:11]}  Rxd5 {[%clk 0:00:13]} 40. exd5+ {[%clk 0:00:11]}  Kxd5 {[%clk 0:00:13]} 41. Kd2 {[%clk 0:00:10]}  Kd4 {[%clk 0:00:13]} 42. a4 {[%clk 0:00:09]}  a5 {[%clk 0:00:13]} 43. Kc2 {[%clk 0:00:09]}  c3 {[%clk 0:00:13]} 44. Kc1 {[%clk 0:00:09]}  Kd3 {[%clk 0:00:13]} 45. Kd1 {[%clk 0:00:10]}  c2+ {[%clk 0:00:13]} 46. Kc1 {[%clk 0:00:10]}  Kc3 {[%clk 0:00:13]} 47. g4 {[%clk 0:00:11]}  hxg4 {[%clk 0:00:14]} 48. h5 {[%clk 0:00:11]}  g3 {[%clk 0:00:14]} 49. h6 {[%clk 0:00:12]}  g2 {[%clk 0:00:14]} 50. hxg7 {[%clk 0:00:13]}  g1=R# {[%clk 0:00:14]} 0-1


[Site "https://www.chess.com"]

[Event "Titled Tuesday Blitz August 15 Late 2023"]
[White "Bilan, Danila"]
[Black "Yurtseven, Melih"]
[WhiteFideId "24161918"]
[BlackFideId "6312160"]
[WhiteElo "2552"]
[BlackElo "2504"]
[Result "0-1"]
[Round "3"]
[TimeControl "180+1"]
[Date "2023.08.15"]
[WhiteClock "0:00:04"]
[BlackClock "0:00:24"]
[Board "104"]

1. d4 {[%clk 0:02:57]}  Nf6 {[%clk 0:02:56]} 2. Nf3 {[%clk 0:02:57]}  g6 {[%clk 0:02:57]} 3. Bg5 {[%clk 0:02:57]}  Bg7 {[%clk 0:02:57]} 4. c3 {[%clk 0:02:57]}  d6 {[%clk 0:02:56]} 5. Nbd2 {[%clk 0:02:57]}  O-O {[%clk 0:02:57]} 6. e4 {[%clk 0:02:53]}  c5 {[%clk 0:02:57]} 7. dxc5 {[%clk 0:02:52]}  dxc5 {[%clk 0:02:58]} 8. Bc4 {[%clk 0:02:52]}  Nc6 {[%clk 0:02:58]} 9. O-O {[%clk 0:02:51]}  Qc7 {[%clk 0:02:58]} 10. Qc2 {[%clk 0:02:51]}  h6 {[%clk 0:02:56]} 11. Bh4 {[%clk 0:02:50]}  Nh5 {[%clk 0:02:55]} 12. Rfe1 {[%clk 0:02:48]}  b6 {[%clk 0:02:54]} 13. e5 {[%clk 0:02:39]}  e6 {[%clk 0:02:43]} 14. g4 {[%clk 0:02:24]}  Nf4 {[%clk 0:02:41]} 15. Bg3 {[%clk 0:02:14]}  Nh3+ {[%clk 0:02:42]} 16. Kg2 {[%clk 0:02:10]}  Ng5 {[%clk 0:02:43]} 17. h4 {[%clk 0:01:33]}  Nxf3 {[%clk 0:02:42]} 18. Nxf3 {[%clk 0:01:34]}  Bb7 {[%clk 0:02:43]} 19. Kh2 {[%clk 0:01:17]}  Rad8 {[%clk 0:02:39]} 20. a4 {[%clk 0:01:00]}  Na5 {[%clk 0:02:37]} 21. Be2 {[%clk 0:01:00]}  Rd7 {[%clk 0:02:38]} 22. Rad1 {[%clk 0:00:56]}  Rfd8 {[%clk 0:02:38]} 23. Rd6 {[%clk 0:00:52]}  Bf8 {[%clk 0:02:36]} 24. Rxd7 {[%clk 0:00:49]}  Rxd7 {[%clk 0:02:36]} 25. Nd2 {[%clk 0:00:40]}  Qc6 {[%clk 0:02:30]} 26. f3 {[%clk 0:00:27]}  Qc7 {[%clk 0:02:22]} 27. h5 {[%clk 0:00:22]}  g5 {[%clk 0:02:22]} 28. Ne4 {[%clk 0:00:12]}  Bxe4 {[%clk 0:02:21]} 29. Qxe4 {[%clk 0:00:13]}  Rd2 {[%clk 0:02:20]} 30. Rd1 {[%clk 0:00:13]}  Rxb2 {[%clk 0:02:13]} 31. Kh3 {[%clk 0:00:12]}  Qc6 {[%clk 0:02:13]} 32. Qxc6 {[%clk 0:00:04]}  Nxc6 {[%clk 0:02:13]} 33. Bb5 {[%clk 0:00:05]}  Ne7 {[%clk 0:02:03]} 34. Rd8 {[%clk 0:00:04]}  Nd5 {[%clk 0:02:04]} 35. c4 {[%clk 0:00:02]}  Nf4+ {[%clk 0:01:59]} 36. Bxf4 {[%clk 0:00:03]}  gxf4 {[%clk 0:02:00]} 37. g5 {[%clk 0:00:02]}  hxg5 {[%clk 0:02:00]} 38. h6 {[%clk 0:00:03]}  Rf2 {[%clk 0:01:51]} 39. h7+ {[%clk 0:00:03]}  Kxh7 {[%clk 0:01:52]} 40. Rxf8 {[%clk 0:00:03]}  Rxf3+ {[%clk 0:01:53]} 41. Kg4 {[%clk 0:00:03]}  Rg3+ {[%clk 0:01:53]} 42. Kh5 {[%clk 0:00:04]}  Kg7 {[%clk 0:01:53]} 43. Rd8 {[%clk 0:00:03]}  f3 {[%clk 0:01:52]} 44. Rd1 {[%clk 0:00:03]}  Rg2 {[%clk 0:01:44]} 45. Bc6 {[%clk 0:00:04]}  g4 {[%clk 0:01:45]} 46. Rf1 {[%clk 0:00:02]}  f6 {[%clk 0:01:39]} 47. Be4 {[%clk 0:00:02]}  f5 {[%clk 0:01:28]} 48. Bc6 {[%clk 0:00:02]}  Re2 {[%clk 0:01:29]} 49. Kg5 {[%clk 0:00:01]}  Rxe5 {[%clk 0:01:29]} 50. Rd1 {[%clk 0:00:02]}  f4+ {[%clk 0:01:13]} 51. Kxf4 {[%clk 0:00:02]}  Rf5+ {[%clk 0:01:13]} 52. Kxg4 {[%clk 0:00:03]}  f2 {[%clk 0:01:14]} 53. Rf1 {[%clk 0:00:03]}  Kf6 {[%clk 0:01:14]} 54. Kg3 {[%clk 0:00:03]}  Ke5 {[%clk 0:01:12]} 55. Rxf2 {[%clk 0:00:04]}  Rg5+ {[%clk 0:01:10]} 56. Kf3 {[%clk 0:00:04]}  Kd4 {[%clk 0:01:09]} 57. Bb5 {[%clk 0:00:04]}  Rf5+ {[%clk 0:01:05]} 58. Ke2 {[%clk 0:00:04]}  Re5+ {[%clk 0:01:02]} 59. Kd2 {[%clk 0:00:05]}  Re4 {[%clk 0:01:03]} 60. Rf8 {[%clk 0:00:04]}  Rh4 {[%clk 0:01:03]} 61. Rd8+ {[%clk 0:00:04]}  Ke4 {[%clk 0:01:04]} 62. Ra8 {[%clk 0:00:04]}  Rh2+ {[%clk 0:01:03]} 63. Ke1 {[%clk 0:00:03]}  Rh7 {[%clk 0:01:02]} 64. Rc8 {[%clk 0:00:02]}  Kd4 {[%clk 0:01:02]} 65. Rd8+ {[%clk 0:00:02]}  Kc3 {[%clk 0:01:02]} 66. Rd7 {[%clk 0:00:02]}  Rxd7 {[%clk 0:00:39]} 67. Bxd7 {[%clk 0:00:03]}  e5 {[%clk 0:00:40]} 68. Bb5 {[%clk 0:00:03]}  Kd3 {[%clk 0:00:35]} 69. Kd1 {[%clk 0:00:03]}  e4 {[%clk 0:00:35]} 70. Ke1 {[%clk 0:00:03]}  Ke3 {[%clk 0:00:32]} 71. Bc6 {[%clk 0:00:03]}  Kd4 {[%clk 0:00:32]} 72. Bd5 {[%clk 0:00:03]}  Kc3 {[%clk 0:00:29]} 73. Ke2 {[%clk 0:00:02]}  Kb4 {[%clk 0:00:29]} 74. Kd2 {[%clk 0:00:01]}  Kxa4 {[%clk 0:00:24]} 75. Bxe4 {[%clk 0:00:02]}  Kb3 {[%clk 0:00:24]} 76. Kd3 {[%clk 0:00:02]}  a5 {[%clk 0:00:22]} 77. Bc6 {[%clk 0:00:02]}  a4 {[%clk 0:00:22]} 78. Bxa4+ {[%clk 0:00:01]}  Kxa4 {[%clk 0:00:22]} 79. Kc3 {[%clk 0:00:02]}  Ka3 {[%clk 0:00:22]} 80. Kc2 {[%clk 0:00:03]}  Kb4 {[%clk 0:00:21]} 81. Kd3 {[%clk 0:00:03]}  Kb3 {[%clk 0:00:22]} 82. Kd2 {[%clk 0:00:04]}  Kxc4 {[%clk 0:00:23]} 83. Kc2 {[%clk 0:00:04]}  Kb4 {[%clk 0:00:23]} 84. Kb2 {[%clk 0:00:04]}  c4 {[%clk 0:00:24]} 0-1


[Site "https://www.chess.com"]